{"text_format":"1","workbook":"xlsx","n_sheets":2,"sheets":["График отпусков 2020 год","Праздники"],"not_rendered":{"charts":1,"images":1,"macros":1,"external_links":0,"defined_names":1,"comments":0,"pivot_tables":0},"unopened":[],"bounds":{"document_bytes":16777216,"sheet_cells":100000,"rows_first":2000,"rows_last":500,"rows_between":2000,"halvings":0,"cell_chars":16384,"cell_head_chars":4096},"cells_cut":0,"cells_raw":0,"read":"whole","date_system":"1900"}

{"sheet":"График отпусков 2020 год","index":0,"n_rows":20,"n_cols":40,"rows_kept":20,"cut":false,"hidden":false,"merged":[[6,26,6,29],[6,19,6,21],[6,15,6,18],[6,3,6,6],[6,7,6,10],[6,11,6,14]]}
[null,null,"2020-01-01",null," -  дата начала года"]
[]
["Таблица и график отпусков с учетом официальных праздничных дней в 2020 году. При изменении данных в таблице меняется график. При открытии файла включайте макросы!"]
["Для добавления фамилий вставьте строку (строки) МЕЖДУ существующими строками таблицы. Фамилии желательно вносить сразу, не оставляя пустых строк"]
[]
[]
[null,null,null,"1-я часть ",null,null,null,"2-я часть ",null,null,null,"3-я часть ",null,null,null,"4-я часть ",null,null,null,"Всего дней",null,null,null,null,null,null,"Продолж. отпуска с учетом праздников \n(ячейки НЕ удалять, используются в графике!)"]
["Сотрудник","Должность","Начало года","Столбец1","Дата начала1","Продолжи- тельность1, дней","Дата конца1","Столбец2","Дата начала2","Продолжи- тельность2, дней","Дата конца2","Столбец6","Дата начала3","Продолжи- тельность3, дней","Дата конца3","Столбец10","Дата начала4","Продолжи- тельность4, дней","Дата конца4","Положе- но за год","Израсхо- довано","Оста- лось",null,"Сегодня в отпуске:","Выходят завтра:","Уходят завтра:","Часть1","Часть2","Часть3","Часть4"]
["Сотрудник 1",null,{"$f":"$C$1","v":"2020-01-01"},{"$f":"IF(MONTH(E9)>2,E9-C9+2,E9-C9+1)","v":276},"2020-10-01",10,{"$f":"E9+F9-1","v":"2020-10-10"},{"$f":"IF(AND(I9-$C9>0,Таблица1[[#This Row],[Продолжи- тельность1, дней]]>0),I9-$C9-D9-(Таблица1[[#This Row],[Дата конца1]]-Таблица1[[#This Row],[Дата начала1]]),\"\")","v":-1},"2020-10-11",10,{"$f":"I9+J9-1","v":"2020-10-20"},{"$f":"IF(AND(M9-$C9>0,Таблица1[[#This Row],[Продолжи- тельность1, дней]]>0,Таблица1[[#This Row],[Продолжи- тельность2, дней]]>0),M9-$C9-$D9-(Таблица1[[#This Row],[Дата конца1]]-Таблица1[[#This Row],[Дата начала1]])-$H9-(Таблица1[[#This Row],[Дата конца2]]-Таблица1[[#This Row],[Дата начала2]])-1,\"\")","v":-173},"2020-05-01",5,"2020-05-06",{"$f":"IF(AND(Q9-$C9>0,Таблица1[[#This Row],[Продолжи- тельность1, дней]]>0,Таблица1[[#This Row],[Продолжи- тельность2, дней]]>0,Таблица1[[#This Row],[Продолжи- тельность3, дней]]>0),Q9-$C9-$D9-(Таблица1[[#This Row],[Дата конца1]]-Таблица1[[#This Row],[Дата начала1]])-$H9-(Таблица1[[#This Row],[Дата конца2]]-Таблица1[[#This Row],[Дата начала2]])-L9-(Таблица1[[#This Row],[Дата конца3]]-Таблица1[[#This Row],[Дата начала3]])-2,\"\")","v":183},"2020-11-06",5,{"$f":"Q9+R9-1","v":"2020-11-10"},28,{"$f":"F9+J9+N9+R9","v":30},{"$f":"T9-U9","v":-2},null,{"$f":"IFERROR(INDEX(Таблица1[Сотрудник],SMALL(IF(\n(Таблица1[Дата начала1]<>\"\")*(Таблица1[Дата начала1]<=TODAY())*(Таблица1[Дата конца1]>=TODAY())+\n(Таблица1[Дата начала2]<>\"\")*(Таблица1[Дата начала2]<=TODAY())*(Таблица1[Дата конца2]>=TODAY())+\n(Таблица1[Дата начала3]<>\"\")*(Таблица1[Дата начала3]<=TODAY())*(Таблица1[Дата конца3]>=TODAY())+\n(Таблица1[Дата начала4]<>\"\")*(Таблица1[Дата начала4]<=TODAY())*(Таблица1[Дата конца4]>=TODAY()),\nROW(Таблица1[Сотрудник])-ROW(Таблица1[#Headers])),ROWS(X$9:X9))),\"-\")","v":"Сотрудник 1"},{"$f":"IFERROR(INDEX(Таблица1[Сотрудник],SMALL(IF(\n(Таблица1[Дата начала1]<>\"\")*(Таблица1[Дата конца1]=TODAY())+\n(Таблица1[Дата начала2]<>\"\")*(Таблица1[Дата конца2]=TODAY())+\n(Таблица1[Дата начала3]<>\"\")*(Таблица1[Дата конца3]=TODAY())+\n(Таблица1[Дата начала4]<>\"\")*(Таблица1[Дата конца4]=TODAY()),\nROW(Таблица1[Сотрудник])-ROW(Таблица1[#Headers])),ROWS(Y$9:Y9))),\"-\")","v":"Сотрудник 4"},{"$f":"IFERROR(INDEX(Таблица1[Сотрудник],SMALL(IF(\n(Таблица1[Дата начала1]<>\"\")*(Таблица1[Дата начала1]=TODAY()+1)+\n(Таблица1[Дата начала2]<>\"\")*(Таблица1[Дата начала2]=TODAY()+1)+\n(Таблица1[Дата начала3]<>\"\")*(Таблица1[Дата начала3]=TODAY()+1)+\n(Таблица1[Дата начала4]<>\"\")*(Таблица1[Дата начала4]=TODAY()+1),\nROW(Таблица1[Сотрудник])-ROW(Таблица1[#Headers])),ROW()-ROW(Z$8))),\"-\")","v":"Сотрудник 3"},{"$f":"IF(Таблица1[[#This Row],[Дата конца1]]-Таблица1[[#This Row],[Дата начала1]]>0,Таблица1[[#This Row],[Дата конца1]]-Таблица1[[#This Row],[Дата начала1]]+1,\"\")","v":10},{"$f":"IF(Таблица1[[#This Row],[Дата конца2]]-Таблица1[[#This Row],[Дата начала2]]>0,Таблица1[[#This Row],[Дата конца2]]-Таблица1[[#This Row],[Дата начала2]]+1,\"\")","v":10},{"$f":"IF(Таблица1[[#This Row],[Дата конца3]]-Таблица1[[#This Row],[Дата начала3]]>0,Таблица1[[#This Row],[Дата конца3]]-Таблица1[[#This Row],[Дата начала3]]+1,\"\")","v":6},{"$f":"IF(Таблица1[[#This Row],[Дата конца4]]-Таблица1[[#This Row],[Дата начала4]]>0,Таблица1[[#This Row],[Дата конца4]]-Таблица1[[#This Row],[Дата начала4]]+1,\"\")","v":5}]
["Сотрудник 2",null,{"$f":"$C$1","v":"2020-01-01"},{"$f":"IF(MONTH(E10)>2,E10-C10+2,E10-C10+1)","v":276},"2020-10-01",10,{"$f":"E10+F10-1","v":"2020-10-10"},{"$f":"IF(AND(I10-$C10>0,Таблица1[[#This Row],[Продолжи- тельность1, дней]]>0),I10-$C10-D10-(Таблица1[[#This Row],[Дата конца1]]-Таблица1[[#This Row],[Дата начала1]]),\"\")","v":""},null,null,null,{"$f":"IF(AND(M10-$C10>0,Таблица1[[#This Row],[Продолжи- тельность1, дней]]>0,Таблица1[[#This Row],[Продолжи- тельность2, дней]]>0),M10-$C10-$D10-(Таблица1[[#This Row],[Дата конца1]]-Таблица1[[#This Row],[Дата начала1]])-$H10-(Таблица1[[#This Row],[Дата конца2]]-Таблица1[[#This Row],[Дата начала2]])-1,\"\")","v":""},null,null,null,{"$f":"IF(AND(Q10-$C10>0,Таблица1[[#This Row],[Продолжи- тельность1, дней]]>0,Таблица1[[#This Row],[Продолжи- тельность2, дней]]>0,Таблица1[[#This Row],[Продолжи- тельность3, дней]]>0),Q10-$C10-$D10-(Таблица1[[#This Row],[Дата конца1]]-Таблица1[[#This Row],[Дата начала1]])-$H10-(Таблица1[[#This Row],[Дата конца2]]-Таблица1[[#This Row],[Дата начала2]])-L10-(Таблица1[[#This Row],[Дата конца3]]-Таблица1[[#This Row],[Дата начала3]])-2,\"\")","v":""},null,null,null,28,{"$f":"F10+J10+N10+R10","v":10},{"$f":"T10-U10","v":18},null,{"$f":"IFERROR(INDEX(Таблица1[Сотрудник],SMALL(IF(\n(Таблица1[Дата начала1]<>\"\")*(Таблица1[Дата начала1]<=TODAY())*(Таблица1[Дата конца1]>=TODAY())+\n(Таблица1[Дата начала2]<>\"\")*(Таблица1[Дата начала2]<=TODAY())*(Таблица1[Дата конца2]>=TODAY())+\n(Таблица1[Дата начала3]<>\"\")*(Таблица1[Дата начала3]<=TODAY())*(Таблица1[Дата конца3]>=TODAY())+\n(Таблица1[Дата начала4]<>\"\")*(Таблица1[Дата начала4]<=TODAY())*(Таблица1[Дата конца4]>=TODAY()),\nROW(Таблица1[Сотрудник])-ROW(Таблица1[#Headers])),ROWS(X$9:X10))),\"-\")","v":"Сотрудник 2"},{"$f":"IFERROR(INDEX(Таблица1[Сотрудник],SMALL(IF(\n(Таблица1[Дата начала1]<>\"\")*(Таблица1[Дата конца1]=TODAY())+\n(Таблица1[Дата начала2]<>\"\")*(Таблица1[Дата конца2]=TODAY())+\n(Таблица1[Дата начала3]<>\"\")*(Таблица1[Дата конца3]=TODAY())+\n(Таблица1[Дата начала4]<>\"\")*(Таблица1[Дата конца4]=TODAY()),\nROW(Таблица1[Сотрудник])-ROW(Таблица1[#Headers])),ROWS(Y$9:Y10))),\"-\")","v":"-"},{"$f":"IFERROR(INDEX(Таблица1[Сотрудник],SMALL(IF(\n(Таблица1[Дата начала1]<>\"\")*(Таблица1[Дата начала1]=TODAY()+1)+\n(Таблица1[Дата начала2]<>\"\")*(Таблица1[Дата начала2]=TODAY()+1)+\n(Таблица1[Дата начала3]<>\"\")*(Таблица1[Дата начала3]=TODAY()+1)+\n(Таблица1[Дата начала4]<>\"\")*(Таблица1[Дата начала4]=TODAY()+1),\nROW(Таблица1[Сотрудник])-ROW(Таблица1[#Headers])),ROW()-ROW(Z$8))),\"-\")","v":"-"},{"$f":"IF(Таблица1[[#This Row],[Дата конца1]]-Таблица1[[#This Row],[Дата начала1]]>0,Таблица1[[#This Row],[Дата конца1]]-Таблица1[[#This Row],[Дата начала1]]+1,\"\")","v":10},{"$f":"IF(Таблица1[[#This Row],[Дата конца2]]-Таблица1[[#This Row],[Дата начала2]]>0,Таблица1[[#This Row],[Дата конца2]]-Таблица1[[#This Row],[Дата начала2]]+1,\"\")","v":""},{"$f":"IF(Таблица1[[#This Row],[Дата конца3]]-Таблица1[[#This Row],[Дата начала3]]>0,Таблица1[[#This Row],[Дата конца3]]-Таблица1[[#This Row],[Дата начала3]]+1,\"\")","v":""},{"$f":"IF(Таблица1[[#This Row],[Дата конца4]]-Таблица1[[#This Row],[Дата начала4]]>0,Таблица1[[#This Row],[Дата конца4]]-Таблица1[[#This Row],[Дата начала4]]+1,\"\")","v":""}]
["Сотрудник 3",null,"2020-01-01",277,"2020-10-02",5,{"$f":"E11+F11-1","v":"2020-10-06"},{"$f":"IF(AND(I11-$C11>0,Таблица1[[#This Row],[Продолжи- тельность1, дней]]>0),I11-$C11-D11-(Таблица1[[#This Row],[Дата конца1]]-Таблица1[[#This Row],[Дата начала1]]),\"\")","v":""},null,null,null,{"$f":"IF(AND(M11-$C11>0,Таблица1[[#This Row],[Продолжи- тельность1, дней]]>0,Таблица1[[#This Row],[Продолжи- тельность2, дней]]>0),M11-$C11-$D11-(Таблица1[[#This Row],[Дата конца1]]-Таблица1[[#This Row],[Дата начала1]])-$H11-(Таблица1[[#This Row],[Дата конца2]]-Таблица1[[#This Row],[Дата начала2]])-1,\"\")","v":""},null,null,null,{"$f":"IF(AND(Q11-$C11>0,Таблица1[[#This Row],[Продолжи- тельность1, дней]]>0,Таблица1[[#This Row],[Продолжи- тельность2, дней]]>0,Таблица1[[#This Row],[Продолжи- тельность3, дней]]>0),Q11-$C11-$D11-(Таблица1[[#This Row],[Дата конца1]]-Таблица1[[#This Row],[Дата начала1]])-$H11-(Таблица1[[#This Row],[Дата конца2]]-Таблица1[[#This Row],[Дата начала2]])-L11-(Таблица1[[#This Row],[Дата конца3]]-Таблица1[[#This Row],[Дата начала3]])-2,\"\")","v":""},null,null,null,28,5,23,null,{"$f":"IFERROR(INDEX(Таблица1[Сотрудник],SMALL(IF(\n(Таблица1[Дата начала1]<>\"\")*(Таблица1[Дата начала1]<=TODAY())*(Таблица1[Дата конца1]>=TODAY())+\n(Таблица1[Дата начала2]<>\"\")*(Таблица1[Дата начала2]<=TODAY())*(Таблица1[Дата конца2]>=TODAY())+\n(Таблица1[Дата начала3]<>\"\")*(Таблица1[Дата начала3]<=TODAY())*(Таблица1[Дата конца3]>=TODAY())+\n(Таблица1[Дата начала4]<>\"\")*(Таблица1[Дата начала4]<=TODAY())*(Таблица1[Дата конца4]>=TODAY()),\nROW(Таблица1[Сотрудник])-ROW(Таблица1[#Headers])),ROWS(X$9:X11))),\"-\")","v":"Сотрудник 4"},{"$f":"IFERROR(INDEX(Таблица1[Сотрудник],SMALL(IF(\n(Таблица1[Дата начала1]<>\"\")*(Таблица1[Дата конца1]=TODAY())+\n(Таблица1[Дата начала2]<>\"\")*(Таблица1[Дата конца2]=TODAY())+\n(Таблица1[Дата начала3]<>\"\")*(Таблица1[Дата конца3]=TODAY())+\n(Таблица1[Дата начала4]<>\"\")*(Таблица1[Дата конца4]=TODAY()),\nROW(Таблица1[Сотрудник])-ROW(Таблица1[#Headers])),ROWS(Y$9:Y11))),\"-\")","v":"-"},{"$f":"IFERROR(INDEX(Таблица1[Сотрудник],SMALL(IF(\n(Таблица1[Дата начала1]<>\"\")*(Таблица1[Дата начала1]=TODAY()+1)+\n(Таблица1[Дата начала2]<>\"\")*(Таблица1[Дата начала2]=TODAY()+1)+\n(Таблица1[Дата начала3]<>\"\")*(Таблица1[Дата начала3]=TODAY()+1)+\n(Таблица1[Дата начала4]<>\"\")*(Таблица1[Дата начала4]=TODAY()+1),\nROW(Таблица1[Сотрудник])-ROW(Таблица1[#Headers])),ROW()-ROW(Z$8))),\"-\")","v":"-"},{"$f":"IF(Таблица1[[#This Row],[Дата конца1]]-Таблица1[[#This Row],[Дата начала1]]>0,Таблица1[[#This Row],[Дата конца1]]-Таблица1[[#This Row],[Дата начала1]]+1,\"\")","v":5},{"$f":"IF(Таблица1[[#This Row],[Дата конца2]]-Таблица1[[#This Row],[Дата начала2]]>0,Таблица1[[#This Row],[Дата конца2]]-Таблица1[[#This Row],[Дата начала2]]+1,\"\")","v":""},{"$f":"IF(Таблица1[[#This Row],[Дата конца3]]-Таблица1[[#This Row],[Дата начала3]]>0,Таблица1[[#This Row],[Дата конца3]]-Таблица1[[#This Row],[Дата начала3]]+1,\"\")","v":""},{"$f":"IF(Таблица1[[#This Row],[Дата конца4]]-Таблица1[[#This Row],[Дата начала4]]>0,Таблица1[[#This Row],[Дата конца4]]-Таблица1[[#This Row],[Дата начала4]]+1,\"\")","v":""}]
["Сотрудник 4",null,"2020-01-01",-43830,null,null,null,{"$f":"IF(AND(I12-$C12>0,Таблица1[[#This Row],[Продолжи- тельность1, дней]]>0),I12-$C12-D12-(Таблица1[[#This Row],[Дата конца1]]-Таблица1[[#This Row],[Дата начала1]]),\"\")","v":""},null,null,null,{"$f":"IF(AND(M12-$C12>0,Таблица1[[#This Row],[Продолжи- тельность1, дней]]>0,Таблица1[[#This Row],[Продолжи- тельность2, дней]]>0),M12-$C12-$D12-(Таблица1[[#This Row],[Дата конца1]]-Таблица1[[#This Row],[Дата начала1]])-$H12-(Таблица1[[#This Row],[Дата конца2]]-Таблица1[[#This Row],[Дата начала2]])-1,\"\")","v":""},null,null,null,{"$f":"IF(AND(Q12-$C12>0,Таблица1[[#This Row],[Продолжи- тельность1, дней]]>0,Таблица1[[#This Row],[Продолжи- тельность2, дней]]>0,Таблица1[[#This Row],[Продолжи- тельность3, дней]]>0),Q12-$C12-$D12-(Таблица1[[#This Row],[Дата конца1]]-Таблица1[[#This Row],[Дата начала1]])-$H12-(Таблица1[[#This Row],[Дата конца2]]-Таблица1[[#This Row],[Дата начала2]])-L12-(Таблица1[[#This Row],[Дата конца3]]-Таблица1[[#This Row],[Дата начала3]])-2,\"\")","v":""},"2020-10-01",1,{"$f":"Q12+R12-1","v":"2020-10-01"},28,1,27,null,{"$f":"IFERROR(INDEX(Таблица1[Сотрудник],SMALL(IF(\n(Таблица1[Дата начала1]<>\"\")*(Таблица1[Дата начала1]<=TODAY())*(Таблица1[Дата конца1]>=TODAY())+\n(Таблица1[Дата начала2]<>\"\")*(Таблица1[Дата начала2]<=TODAY())*(Таблица1[Дата конца2]>=TODAY())+\n(Таблица1[Дата начала3]<>\"\")*(Таблица1[Дата начала3]<=TODAY())*(Таблица1[Дата конца3]>=TODAY())+\n(Таблица1[Дата начала4]<>\"\")*(Таблица1[Дата начала4]<=TODAY())*(Таблица1[Дата конца4]>=TODAY()),\nROW(Таблица1[Сотрудник])-ROW(Таблица1[#Headers])),ROWS(X$9:X12))),\"-\")","v":"-"},{"$f":"IFERROR(INDEX(Таблица1[Сотрудник],SMALL(IF(\n(Таблица1[Дата начала1]<>\"\")*(Таблица1[Дата конца1]=TODAY())+\n(Таблица1[Дата начала2]<>\"\")*(Таблица1[Дата конца2]=TODAY())+\n(Таблица1[Дата начала3]<>\"\")*(Таблица1[Дата конца3]=TODAY())+\n(Таблица1[Дата начала4]<>\"\")*(Таблица1[Дата конца4]=TODAY()),\nROW(Таблица1[Сотрудник])-ROW(Таблица1[#Headers])),ROWS(Y$9:Y12))),\"-\")","v":"-"},{"$f":"IFERROR(INDEX(Таблица1[Сотрудник],SMALL(IF(\n(Таблица1[Дата начала1]<>\"\")*(Таблица1[Дата начала1]=TODAY()+1)+\n(Таблица1[Дата начала2]<>\"\")*(Таблица1[Дата начала2]=TODAY()+1)+\n(Таблица1[Дата начала3]<>\"\")*(Таблица1[Дата начала3]=TODAY()+1)+\n(Таблица1[Дата начала4]<>\"\")*(Таблица1[Дата начала4]=TODAY()+1),\nROW(Таблица1[Сотрудник])-ROW(Таблица1[#Headers])),ROW()-ROW(Z$8))),\"-\")","v":"-"},{"$f":"IF(Таблица1[[#This Row],[Дата конца1]]-Таблица1[[#This Row],[Дата начала1]]>0,Таблица1[[#This Row],[Дата конца1]]-Таблица1[[#This Row],[Дата начала1]]+1,\"\")","v":""},{"$f":"IF(Таблица1[[#This Row],[Дата конца2]]-Таблица1[[#This Row],[Дата начала2]]>0,Таблица1[[#This Row],[Дата конца2]]-Таблица1[[#This Row],[Дата начала2]]+1,\"\")","v":""},{"$f":"IF(Таблица1[[#This Row],[Дата конца3]]-Таблица1[[#This Row],[Дата начала3]]>0,Таблица1[[#This Row],[Дата конца3]]-Таблица1[[#This Row],[Дата начала3]]+1,\"\")","v":""},{"$f":"IF(Таблица1[[#This Row],[Дата конца4]]-Таблица1[[#This Row],[Дата начала4]]>0,Таблица1[[#This Row],[Дата конца4]]-Таблица1[[#This Row],[Дата начала4]]+1,\"\")","v":""}]
["Сотрудник 5",null,"2020-01-01",-43830,null,null,null,{"$f":"IF(AND(I13-$C13>0,Таблица1[[#This Row],[Продолжи- тельность1, дней]]>0),I13-$C13-D13-(Таблица1[[#This Row],[Дата конца1]]-Таблица1[[#This Row],[Дата начала1]]),\"\")","v":""},null,null,null,{"$f":"IF(AND(M13-$C13>0,Таблица1[[#This Row],[Продолжи- тельность1, дней]]>0,Таблица1[[#This Row],[Продолжи- тельность2, дней]]>0),M13-$C13-$D13-(Таблица1[[#This Row],[Дата конца1]]-Таблица1[[#This Row],[Дата начала1]])-$H13-(Таблица1[[#This Row],[Дата конца2]]-Таблица1[[#This Row],[Дата начала2]])-1,\"\")","v":""},null,null,null,{"$f":"IF(AND(Q13-$C13>0,Таблица1[[#This Row],[Продолжи- тельность1, дней]]>0,Таблица1[[#This Row],[Продолжи- тельность2, дней]]>0,Таблица1[[#This Row],[Продолжи- тельность3, дней]]>0),Q13-$C13-$D13-(Таблица1[[#This Row],[Дата конца1]]-Таблица1[[#This Row],[Дата начала1]])-$H13-(Таблица1[[#This Row],[Дата конца2]]-Таблица1[[#This Row],[Дата начала2]])-L13-(Таблица1[[#This Row],[Дата конца3]]-Таблица1[[#This Row],[Дата начала3]])-2,\"\")","v":""},null,null,null,28,0,28,null,{"$f":"IFERROR(INDEX(Таблица1[Сотрудник],SMALL(IF(\n(Таблица1[Дата начала1]<>\"\")*(Таблица1[Дата начала1]<=TODAY())*(Таблица1[Дата конца1]>=TODAY())+\n(Таблица1[Дата начала2]<>\"\")*(Таблица1[Дата начала2]<=TODAY())*(Таблица1[Дата конца2]>=TODAY())+\n(Таблица1[Дата начала3]<>\"\")*(Таблица1[Дата начала3]<=TODAY())*(Таблица1[Дата конца3]>=TODAY())+\n(Таблица1[Дата начала4]<>\"\")*(Таблица1[Дата начала4]<=TODAY())*(Таблица1[Дата конца4]>=TODAY()),\nROW(Таблица1[Сотрудник])-ROW(Таблица1[#Headers])),ROWS(X$9:X13))),\"-\")","v":"-"},{"$f":"IFERROR(INDEX(Таблица1[Сотрудник],SMALL(IF(\n(Таблица1[Дата начала1]<>\"\")*(Таблица1[Дата конца1]=TODAY())+\n(Таблица1[Дата начала2]<>\"\")*(Таблица1[Дата конца2]=TODAY())+\n(Таблица1[Дата начала3]<>\"\")*(Таблица1[Дата конца3]=TODAY())+\n(Таблица1[Дата начала4]<>\"\")*(Таблица1[Дата конца4]=TODAY()),\nROW(Таблица1[Сотрудник])-ROW(Таблица1[#Headers])),ROWS(Y$9:Y13))),\"-\")","v":"-"},{"$f":"IFERROR(INDEX(Таблица1[Сотрудник],SMALL(IF(\n(Таблица1[Дата начала1]<>\"\")*(Таблица1[Дата начала1]=TODAY()+1)+\n(Таблица1[Дата начала2]<>\"\")*(Таблица1[Дата начала2]=TODAY()+1)+\n(Таблица1[Дата начала3]<>\"\")*(Таблица1[Дата начала3]=TODAY()+1)+\n(Таблица1[Дата начала4]<>\"\")*(Таблица1[Дата начала4]=TODAY()+1),\nROW(Таблица1[Сотрудник])-ROW(Таблица1[#Headers])),ROW()-ROW(Z$8))),\"-\")","v":"-"},{"$f":"IF(Таблица1[[#This Row],[Дата конца1]]-Таблица1[[#This Row],[Дата начала1]]>0,Таблица1[[#This Row],[Дата конца1]]-Таблица1[[#This Row],[Дата начала1]]+1,\"\")","v":""},{"$f":"IF(Таблица1[[#This Row],[Дата конца2]]-Таблица1[[#This Row],[Дата начала2]]>0,Таблица1[[#This Row],[Дата конца2]]-Таблица1[[#This Row],[Дата начала2]]+1,\"\")","v":""},{"$f":"IF(Таблица1[[#This Row],[Дата конца3]]-Таблица1[[#This Row],[Дата начала3]]>0,Таблица1[[#This Row],[Дата конца3]]-Таблица1[[#This Row],[Дата начала3]]+1,\"\")","v":""},{"$f":"IF(Таблица1[[#This Row],[Дата конца4]]-Таблица1[[#This Row],[Дата начала4]]>0,Таблица1[[#This Row],[Дата конца4]]-Таблица1[[#This Row],[Дата начала4]]+1,\"\")","v":""}]
["Сотрудник 6",null,"2020-01-01",-43830,null,null,null,{"$f":"IF(AND(I14-$C14>0,Таблица1[[#This Row],[Продолжи- тельность1, дней]]>0),I14-$C14-D14-(Таблица1[[#This Row],[Дата конца1]]-Таблица1[[#This Row],[Дата начала1]]),\"\")","v":""},null,null,null,{"$f":"IF(AND(M14-$C14>0,Таблица1[[#This Row],[Продолжи- тельность1, дней]]>0,Таблица1[[#This Row],[Продолжи- тельность2, дней]]>0),M14-$C14-$D14-(Таблица1[[#This Row],[Дата конца1]]-Таблица1[[#This Row],[Дата начала1]])-$H14-(Таблица1[[#This Row],[Дата конца2]]-Таблица1[[#This Row],[Дата начала2]])-1,\"\")","v":""},null,null,null,{"$f":"IF(AND(Q14-$C14>0,Таблица1[[#This Row],[Продолжи- тельность1, дней]]>0,Таблица1[[#This Row],[Продолжи- тельность2, дней]]>0,Таблица1[[#This Row],[Продолжи- тельность3, дней]]>0),Q14-$C14-$D14-(Таблица1[[#This Row],[Дата конца1]]-Таблица1[[#This Row],[Дата начала1]])-$H14-(Таблица1[[#This Row],[Дата конца2]]-Таблица1[[#This Row],[Дата начала2]])-L14-(Таблица1[[#This Row],[Дата конца3]]-Таблица1[[#This Row],[Дата начала3]])-2,\"\")","v":""},null,null,null,28,{"$f":"F14+J14+N14+R14","v":0},28,null,{"$f":"IFERROR(INDEX(Таблица1[Сотрудник],SMALL(IF(\n(Таблица1[Дата начала1]<>\"\")*(Таблица1[Дата начала1]<=TODAY())*(Таблица1[Дата конца1]>=TODAY())+\n(Таблица1[Дата начала2]<>\"\")*(Таблица1[Дата начала2]<=TODAY())*(Таблица1[Дата конца2]>=TODAY())+\n(Таблица1[Дата начала3]<>\"\")*(Таблица1[Дата начала3]<=TODAY())*(Таблица1[Дата конца3]>=TODAY())+\n(Таблица1[Дата начала4]<>\"\")*(Таблица1[Дата начала4]<=TODAY())*(Таблица1[Дата конца4]>=TODAY()),\nROW(Таблица1[Сотрудник])-ROW(Таблица1[#Headers])),ROWS(X$9:X14))),\"-\")","v":"-"},{"$f":"IFERROR(INDEX(Таблица1[Сотрудник],SMALL(IF(\n(Таблица1[Дата начала1]<>\"\")*(Таблица1[Дата конца1]=TODAY())+\n(Таблица1[Дата начала2]<>\"\")*(Таблица1[Дата конца2]=TODAY())+\n(Таблица1[Дата начала3]<>\"\")*(Таблица1[Дата конца3]=TODAY())+\n(Таблица1[Дата начала4]<>\"\")*(Таблица1[Дата конца4]=TODAY()),\nROW(Таблица1[Сотрудник])-ROW(Таблица1[#Headers])),ROWS(Y$9:Y14))),\"-\")","v":"-"},{"$f":"IFERROR(INDEX(Таблица1[Сотрудник],SMALL(IF(\n(Таблица1[Дата начала1]<>\"\")*(Таблица1[Дата начала1]=TODAY()+1)+\n(Таблица1[Дата начала2]<>\"\")*(Таблица1[Дата начала2]=TODAY()+1)+\n(Таблица1[Дата начала3]<>\"\")*(Таблица1[Дата начала3]=TODAY()+1)+\n(Таблица1[Дата начала4]<>\"\")*(Таблица1[Дата начала4]=TODAY()+1),\nROW(Таблица1[Сотрудник])-ROW(Таблица1[#Headers])),ROW()-ROW(Z$8))),\"-\")","v":"-"},{"$f":"IF(Таблица1[[#This Row],[Дата конца1]]-Таблица1[[#This Row],[Дата начала1]]>0,Таблица1[[#This Row],[Дата конца1]]-Таблица1[[#This Row],[Дата начала1]]+1,\"\")","v":""},{"$f":"IF(Таблица1[[#This Row],[Дата конца2]]-Таблица1[[#This Row],[Дата начала2]]>0,Таблица1[[#This Row],[Дата конца2]]-Таблица1[[#This Row],[Дата начала2]]+1,\"\")","v":""},{"$f":"IF(Таблица1[[#This Row],[Дата конца3]]-Таблица1[[#This Row],[Дата начала3]]>0,Таблица1[[#This Row],[Дата конца3]]-Таблица1[[#This Row],[Дата начала3]]+1,\"\")","v":""},{"$f":"IF(Таблица1[[#This Row],[Дата конца4]]-Таблица1[[#This Row],[Дата начала4]]>0,Таблица1[[#This Row],[Дата конца4]]-Таблица1[[#This Row],[Дата начала4]]+1,\"\")","v":""}]
["Сотрудник 7",null,"2020-01-01",-43830,null,null,null,{"$f":"IF(AND(I15-$C15>0,Таблица1[[#This Row],[Продолжи- тельность1, дней]]>0),I15-$C15-D15-(Таблица1[[#This Row],[Дата конца1]]-Таблица1[[#This Row],[Дата начала1]]),\"\")","v":""},null,null,null,{"$f":"IF(AND(M15-$C15>0,Таблица1[[#This Row],[Продолжи- тельность1, дней]]>0,Таблица1[[#This Row],[Продолжи- тельность2, дней]]>0),M15-$C15-$D15-(Таблица1[[#This Row],[Дата конца1]]-Таблица1[[#This Row],[Дата начала1]])-$H15-(Таблица1[[#This Row],[Дата конца2]]-Таблица1[[#This Row],[Дата начала2]])-1,\"\")","v":""},null,null,null,{"$f":"IF(AND(Q15-$C15>0,Таблица1[[#This Row],[Продолжи- тельность1, дней]]>0,Таблица1[[#This Row],[Продолжи- тельность2, дней]]>0,Таблица1[[#This Row],[Продолжи- тельность3, дней]]>0),Q15-$C15-$D15-(Таблица1[[#This Row],[Дата конца1]]-Таблица1[[#This Row],[Дата начала1]])-$H15-(Таблица1[[#This Row],[Дата конца2]]-Таблица1[[#This Row],[Дата начала2]])-L15-(Таблица1[[#This Row],[Дата конца3]]-Таблица1[[#This Row],[Дата начала3]])-2,\"\")","v":""},null,null,null,28,0,28,null,{"$f":"IFERROR(INDEX(Таблица1[Сотрудник],SMALL(IF(\n(Таблица1[Дата начала1]<>\"\")*(Таблица1[Дата начала1]<=TODAY())*(Таблица1[Дата конца1]>=TODAY())+\n(Таблица1[Дата начала2]<>\"\")*(Таблица1[Дата начала2]<=TODAY())*(Таблица1[Дата конца2]>=TODAY())+\n(Таблица1[Дата начала3]<>\"\")*(Таблица1[Дата начала3]<=TODAY())*(Таблица1[Дата конца3]>=TODAY())+\n(Таблица1[Дата начала4]<>\"\")*(Таблица1[Дата начала4]<=TODAY())*(Таблица1[Дата конца4]>=TODAY()),\nROW(Таблица1[Сотрудник])-ROW(Таблица1[#Headers])),ROWS(X$9:X15))),\"-\")","v":"-"},{"$f":"IFERROR(INDEX(Таблица1[Сотрудник],SMALL(IF(\n(Таблица1[Дата начала1]<>\"\")*(Таблица1[Дата конца1]=TODAY())+\n(Таблица1[Дата начала2]<>\"\")*(Таблица1[Дата конца2]=TODAY())+\n(Таблица1[Дата начала3]<>\"\")*(Таблица1[Дата конца3]=TODAY())+\n(Таблица1[Дата начала4]<>\"\")*(Таблица1[Дата конца4]=TODAY()),\nROW(Таблица1[Сотрудник])-ROW(Таблица1[#Headers])),ROWS(Y$9:Y15))),\"-\")","v":"-"},{"$f":"IFERROR(INDEX(Таблица1[Сотрудник],SMALL(IF(\n(Таблица1[Дата начала1]<>\"\")*(Таблица1[Дата начала1]=TODAY()+1)+\n(Таблица1[Дата начала2]<>\"\")*(Таблица1[Дата начала2]=TODAY()+1)+\n(Таблица1[Дата начала3]<>\"\")*(Таблица1[Дата начала3]=TODAY()+1)+\n(Таблица1[Дата начала4]<>\"\")*(Таблица1[Дата начала4]=TODAY()+1),\nROW(Таблица1[Сотрудник])-ROW(Таблица1[#Headers])),ROW()-ROW(Z$8))),\"-\")","v":"-"},{"$f":"IF(Таблица1[[#This Row],[Дата конца1]]-Таблица1[[#This Row],[Дата начала1]]>0,Таблица1[[#This Row],[Дата конца1]]-Таблица1[[#This Row],[Дата начала1]]+1,\"\")","v":""},{"$f":"IF(Таблица1[[#This Row],[Дата конца2]]-Таблица1[[#This Row],[Дата начала2]]>0,Таблица1[[#This Row],[Дата конца2]]-Таблица1[[#This Row],[Дата начала2]]+1,\"\")","v":""},{"$f":"IF(Таблица1[[#This Row],[Дата конца3]]-Таблица1[[#This Row],[Дата начала3]]>0,Таблица1[[#This Row],[Дата конца3]]-Таблица1[[#This Row],[Дата начала3]]+1,\"\")","v":""},{"$f":"IF(Таблица1[[#This Row],[Дата конца4]]-Таблица1[[#This Row],[Дата начала4]]>0,Таблица1[[#This Row],[Дата конца4]]-Таблица1[[#This Row],[Дата начала4]]+1,\"\")","v":""}]
["Сотрудник 8",null,"2020-01-01",-43830,null,null,null,{"$f":"IF(AND(I16-$C16>0,Таблица1[[#This Row],[Продолжи- тельность1, дней]]>0),I16-$C16-D16-(Таблица1[[#This Row],[Дата конца1]]-Таблица1[[#This Row],[Дата начала1]]),\"\")","v":""},null,null,null,{"$f":"IF(AND(M16-$C16>0,Таблица1[[#This Row],[Продолжи- тельность1, дней]]>0,Таблица1[[#This Row],[Продолжи- тельность2, дней]]>0),M16-$C16-$D16-(Таблица1[[#This Row],[Дата конца1]]-Таблица1[[#This Row],[Дата начала1]])-$H16-(Таблица1[[#This Row],[Дата конца2]]-Таблица1[[#This Row],[Дата начала2]])-1,\"\")","v":""},null,null,null,{"$f":"IF(AND(Q16-$C16>0,Таблица1[[#This Row],[Продолжи- тельность1, дней]]>0,Таблица1[[#This Row],[Продолжи- тельность2, дней]]>0,Таблица1[[#This Row],[Продолжи- тельность3, дней]]>0),Q16-$C16-$D16-(Таблица1[[#This Row],[Дата конца1]]-Таблица1[[#This Row],[Дата начала1]])-$H16-(Таблица1[[#This Row],[Дата конца2]]-Таблица1[[#This Row],[Дата начала2]])-L16-(Таблица1[[#This Row],[Дата конца3]]-Таблица1[[#This Row],[Дата начала3]])-2,\"\")","v":""},null,null,null,28,0,28,null,{"$f":"IFERROR(INDEX(Таблица1[Сотрудник],SMALL(IF(\n(Таблица1[Дата начала1]<>\"\")*(Таблица1[Дата начала1]<=TODAY())*(Таблица1[Дата конца1]>=TODAY())+\n(Таблица1[Дата начала2]<>\"\")*(Таблица1[Дата начала2]<=TODAY())*(Таблица1[Дата конца2]>=TODAY())+\n(Таблица1[Дата начала3]<>\"\")*(Таблица1[Дата начала3]<=TODAY())*(Таблица1[Дата конца3]>=TODAY())+\n(Таблица1[Дата начала4]<>\"\")*(Таблица1[Дата начала4]<=TODAY())*(Таблица1[Дата конца4]>=TODAY()),\nROW(Таблица1[Сотрудник])-ROW(Таблица1[#Headers])),ROWS(X$9:X16))),\"-\")","v":"-"},{"$f":"IFERROR(INDEX(Таблица1[Сотрудник],SMALL(IF(\n(Таблица1[Дата начала1]<>\"\")*(Таблица1[Дата конца1]=TODAY())+\n(Таблица1[Дата начала2]<>\"\")*(Таблица1[Дата конца2]=TODAY())+\n(Таблица1[Дата начала3]<>\"\")*(Таблица1[Дата конца3]=TODAY())+\n(Таблица1[Дата начала4]<>\"\")*(Таблица1[Дата конца4]=TODAY()),\nROW(Таблица1[Сотрудник])-ROW(Таблица1[#Headers])),ROWS(Y$9:Y16))),\"-\")","v":"-"},{"$f":"IFERROR(INDEX(Таблица1[Сотрудник],SMALL(IF(\n(Таблица1[Дата начала1]<>\"\")*(Таблица1[Дата начала1]=TODAY()+1)+\n(Таблица1[Дата начала2]<>\"\")*(Таблица1[Дата начала2]=TODAY()+1)+\n(Таблица1[Дата начала3]<>\"\")*(Таблица1[Дата начала3]=TODAY()+1)+\n(Таблица1[Дата начала4]<>\"\")*(Таблица1[Дата начала4]=TODAY()+1),\nROW(Таблица1[Сотрудник])-ROW(Таблица1[#Headers])),ROW()-ROW(Z$8))),\"-\")","v":"-"},{"$f":"IF(Таблица1[[#This Row],[Дата конца1]]-Таблица1[[#This Row],[Дата начала1]]>0,Таблица1[[#This Row],[Дата конца1]]-Таблица1[[#This Row],[Дата начала1]]+1,\"\")","v":""},{"$f":"IF(Таблица1[[#This Row],[Дата конца2]]-Таблица1[[#This Row],[Дата начала2]]>0,Таблица1[[#This Row],[Дата конца2]]-Таблица1[[#This Row],[Дата начала2]]+1,\"\")","v":""},{"$f":"IF(Таблица1[[#This Row],[Дата конца3]]-Таблица1[[#This Row],[Дата начала3]]>0,Таблица1[[#This Row],[Дата конца3]]-Таблица1[[#This Row],[Дата начала3]]+1,\"\")","v":""},{"$f":"IF(Таблица1[[#This Row],[Дата конца4]]-Таблица1[[#This Row],[Дата начала4]]>0,Таблица1[[#This Row],[Дата конца4]]-Таблица1[[#This Row],[Дата начала4]]+1,\"\")","v":""}]
[null,null,{"$f":"$C$1","v":"2020-01-01"},{"$f":"IF(MONTH(E17)>2,E17-C17+2,E17-C17+1)","v":-43830},null,null,{"$f":"E17+F17-1","v":-1},{"$f":"IF(AND(I17-$C17>0,Таблица1[[#This Row],[Продолжи- тельность1, дней]]>0),I17-$C17-D17-(Таблица1[[#This Row],[Дата конца1]]-Таблица1[[#This Row],[Дата начала1]]),\"\")","v":""},null,null,{"$f":"I17+J17-1","v":-1},{"$f":"IF(AND(M17-$C17>0,Таблица1[[#This Row],[Продолжи- тельность1, дней]]>0,Таблица1[[#This Row],[Продолжи- тельность2, дней]]>0),M17-$C17-$D17-(Таблица1[[#This Row],[Дата конца1]]-Таблица1[[#This Row],[Дата начала1]])-$H17-(Таблица1[[#This Row],[Дата конца2]]-Таблица1[[#This Row],[Дата начала2]])-1,\"\")","v":""},null,null,{"$f":"M17+N17-1","v":-1},{"$f":"IF(AND(Q17-$C17>0,Таблица1[[#This Row],[Продолжи- тельность1, дней]]>0,Таблица1[[#This Row],[Продолжи- тельность2, дней]]>0,Таблица1[[#This Row],[Продолжи- тельность3, дней]]>0),Q17-$C17-$D17-(Таблица1[[#This Row],[Дата конца1]]-Таблица1[[#This Row],[Дата начала1]])-$H17-(Таблица1[[#This Row],[Дата конца2]]-Таблица1[[#This Row],[Дата начала2]])-L17-(Таблица1[[#This Row],[Дата конца3]]-Таблица1[[#This Row],[Дата начала3]])-2,\"\")","v":""},null,null,{"$f":"Q17+R17-1","v":-1},null,{"$f":"F17+J17+N17+R17","v":0},{"$f":"T17-U17","v":0},null,{"$f":"IFERROR(INDEX(Таблица1[Сотрудник],SMALL(IF(\n(Таблица1[Дата начала1]<>\"\")*(Таблица1[Дата начала1]<=TODAY())*(Таблица1[Дата конца1]>=TODAY())+\n(Таблица1[Дата начала2]<>\"\")*(Таблица1[Дата начала2]<=TODAY())*(Таблица1[Дата конца2]>=TODAY())+\n(Таблица1[Дата начала3]<>\"\")*(Таблица1[Дата начала3]<=TODAY())*(Таблица1[Дата конца3]>=TODAY())+\n(Таблица1[Дата начала4]<>\"\")*(Таблица1[Дата начала4]<=TODAY())*(Таблица1[Дата конца4]>=TODAY()),\nROW(Таблица1[Сотрудник])-ROW(Таблица1[#Headers])),ROWS(X$9:X17))),\"-\")","v":"-"},null,null,{"$f":"IF(Таблица1[[#This Row],[Дата конца1]]-Таблица1[[#This Row],[Дата начала1]]>0,Таблица1[[#This Row],[Дата конца1]]-Таблица1[[#This Row],[Дата начала1]]+1,\"\")","v":""},{"$f":"IF(Таблица1[[#This Row],[Дата конца2]]-Таблица1[[#This Row],[Дата начала2]]>0,Таблица1[[#This Row],[Дата конца2]]-Таблица1[[#This Row],[Дата начала2]]+1,\"\")","v":""},{"$f":"IF(Таблица1[[#This Row],[Дата конца3]]-Таблица1[[#This Row],[Дата начала3]]>0,Таблица1[[#This Row],[Дата конца3]]-Таблица1[[#This Row],[Дата начала3]]+1,\"\")","v":""},{"$f":"IF(Таблица1[[#This Row],[Дата конца4]]-Таблица1[[#This Row],[Дата начала4]]>0,Таблица1[[#This Row],[Дата конца4]]-Таблица1[[#This Row],[Дата начала4]]+1,\"\")","v":""},null,null,null,null,null,null,null,null,null,{"$f":"IF(Таблица1[[#This Row],[Дата конца3]]-Таблица1[[#This Row],[Дата начала3]]>0,Таблица1[[#This Row],[Дата конца3]]-Таблица1[[#This Row],[Дата начала3]],0)","v":0}]
[]
[]
[{"$f":"\"График отпусков на \"& YEAR(C1) & \" год\"","v":"График отпусков на 2020 год"}]

{"sheet":"Праздники","index":1,"n_rows":16,"n_cols":3,"rows_kept":16,"cut":false,"hidden":false,"merged":[]}
["Нераб. дни 2015",null,"Нерабочие дни 2021"]
[]
["2015-01-01",null,"2020-01-01"]
["2015-01-02",null,"2020-01-02"]
["2015-01-03",null,"2020-01-03"]
["2015-01-04",null,"2020-01-04"]
["2015-01-05",null,"2020-01-05"]
["2015-01-06",null,"2020-01-06"]
["2015-01-07",null,"2020-01-07"]
["2015-01-08",null,"2020-01-08"]
["2015-02-23",null,"2020-02-23"]
["2015-03-08",null,"2020-03-08"]
["2015-05-01",null,"2020-05-01"]
["2015-05-09",null,"2020-05-09"]
["2015-06-12",null,"2020-06-12"]
["2015-11-04",null,"2020-11-04"]